fUST/lending_fUST_20240115
["ID","MTS","AMOUNT","RATE_DAILY","PERIOD"]
[311568530,1705252243986,-905.29,0.00031273,2]
[311568532,1705252243995,-500.0,0.00031273,2]
[311568534,1705252244004,-500.0,0.00031273,2]
[311568536,1705252244013,-501.32142053,0.00031273,2]
[311568538,1705252244024,-500.0,0.00031273,2]
[311568540,1705252244033,-521.55046774,0.00031273,2]
[311568542,1705252244044,-500.0,0.00031273,2]
[311568544,1705252244052,-500.0,0.00031273,2]
[311568546,1705252244061,-714.98,0.00031273,2]
[311568548,1705252244070,-401.11191083,0.00031273,2]
[311568550,1705252244079,-500.0,0.00031273,2]
[311568552,1705252244088,-612.61065443,0.00031273,2]
[311568554,1705252244097,-614.50021481,0.00031273,2]
[311568556,1705252244107,-383.49442707,0.00031273,2]
[311568558,1705252244116,-500.57720315,0.00031273,2]
[311568560,1705252244125,-500.0,0.00031273,2]
[311568562,1705252244134,-245.26060203,0.00031273,2]
[311568564,1705252244144,-527.81872152,0.00031273,2]
[311568566,1705252244153,-2086.67,0.00031335,2]
[311568568,1705252244162,-24429.69,0.00031335,2]
[311568570,1705252244171,-726.34,0.00031335,2]
[311568572,1705252244180,-9497.87,0.00031335,2]
[311568574,1705252244189,-43293.24,0.00031335,2]
[311568576,1705252244198,-500.0,0.00031335,2]
[311568577,1705252244207,-500.0,0.00031335,2]
[311568579,1705252244216,-293.97339599,0.00031335,2]
[311568581,1705252244226,-1065.8,0.00031335,2]
[311568583,1705252244236,-500.0,0.00031547,2]
[311568585,1705252244245,-533.9290065,0.00031547,2]
[311568587,1705252244254,-805.31,0.00031547,2]
[311568589,1705252244263,-500.0,0.00031547,2]
[311568591,1705252244272,-500.0,0.00031547,2]
[311568593,1705252244281,-500.0,0.00031547,2]
[311568595,1705252244290,-500.0,0.00031547,2]
[311568597,1705252244299,-500.0,0.00031547,2]
[311568599,1705252244309,-500.0,0.00031547,2]
[311568601,1705252244318,-504.46590578,0.00031547,2]
[311568603,1705252244327,-684.6,0.00031547,2]
[311568605,1705252244336,-154.85090275,0.00031547,2]
[311568607,1705252244344,-500.0,0.00031547,2]
[311568609,1705252244354,-503.33387276,0.00031547,2]
[311568611,1705252244363,-1940.92,0.00031547,2]
[311568613,1705252244372,-500.0,0.00031547,2]
[311568615,1705252244381,-500.0,0.00031547,2]
[311568617,1705252244390,-500.0,0.00031547,2]
[311568619,1705252244400,-500.0,0.00031547,2]
[311568621,1705252244408,-500.0,0.00031547,2]
[311568623,1705252244418,-500.0,0.00031547,2]
[311568625,1705252244427,-500.0,0.00031547,2]
[311568627,1705252244439,-500.0,0.00031547,2]
[311568629,1705252244448,-500.0,0.00031547,2]
[311568631,1705252244457,-500.0,0.00031547,2]
[311568633,1705252244465,-500.0,0.00031547,2]
[311568635,1705252244475,-2291.76,0.00031547,2]
[311568637,1705252244486,-1984.0,0.00031547,2]
[311568639,1705252244495,-500.0,0.00031547,2]
[311568641,1705252244504,-500.0,0.00031547,2]
[311568643,1705252244513,-500.0,0.00031547,2]
[311568645,1705252244522,-500.0,0.00031547,2]
[311568647,1705252244531,-528.99719746,0.00031547,2]
[311568649,1705252244540,-500.0,0.00031547,2]
[311568651,1705252244550,-674.96,0.00031547,2]
[311568653,1705252244561,-199.36649981,0.00031547,2]
[311568655,1705252244570,-500.0,0.00031547,2]
[311568657,1705252244579,-500.0,0.00031547,2]
[311568659,1705252244589,-547.80507985,0.00031547,2]
[311568661,1705252244599,-500.0,0.00031547,2]
[311568663,1705252244608,-1323.48,0.00031547,2]
[311568665,1705252244617,-500.0,0.00031547,2]
[311568667,1705252244627,-500.0,0.00031547,2]
[311568669,1705252244636,-500.0,0.00031547,2]
[311568671,1705252244645,-503.5641367,0.00031547,2]
[311568673,1705252244654,-500.0,0.00031547,2]
[311568675,1705252244662,-500.0,0.00031547,2]
[311568677,1705252244671,-631.39,0.00031547,2]
[311568679,1705252244680,-538.47917633,0.00031547,2]
[311568681,1705252244689,-500.0,0.00031547,2]
[311568682,1705252244698,-489.84944063,0.00031547,2]
[311568684,1705252244707,-500.0,0.00031547,2]
[311568686,1705252244717,-224.57764706,0.00031547,2]
[311568688,1705252244729,-1010.16,0.00031547,2]
[311568690,1705252244738,-500.0,0.00031547,2]
[311568692,1705252244748,-500.0,0.00031547,2]
[311568694,1705252244758,-1354.27,0.00031547,2]
[311568696,1705252244767,-500.0,0.00031547,2]
[311568698,1705252244777,-500.0,0.00031547,2]
[311568701,1705252244786,-500.0,0.00031547,2]
[311568702,1705252244795,-500.0,0.00031547,2]
[311568704,1705252244807,-711.13,0.00031547,2]
[311568706,1705252244817,-500.0,0.00031547,2]
[311568708,1705252244826,-500.0,0.00031547,2]
[311568710,1705252244835,-500.0,0.00031547,2]
[311568712,1705252244844,-500.0,0.00031547,2]
[311568714,1705252244853,-151.36626768,0.00031547,2]
[311568716,1705252244862,-500.0,0.00031547,2]
[311568718,1705252244871,-502.97648428,0.00031547,2]
[311568719,1705252244880,-500.0,0.00031547,2]
[311568720,1705252244889,-500.0,0.00031547,2]
[311568721,1705252244898,-500.0,0.00031547,2]
[311568722,1705252244907,-500.0,0.00031547,2]
[311568723,1705252244916,-522.11357524,0.00031547,2]
[311568724,1705252244925,-502.80086278,0.00031547,2]
[311568725,1705252244934,-500.0,0.00031547,2]
[311568726,1705252244943,-500.0,0.00031547,2]
[311568727,1705252244952,-506.8572877,0.00031547,2]
[311568729,1705252244961,-500.0,0.00031547,2]
[311568731,1705252244970,-500.0,0.00031547,2]
[311568733,1705252244979,-500.0,0.00031547,2]
[311568735,1705252244988,-500.0,0.00031547,2]
[311568737,1705252244997,-209.81495602,0.00031547,2]
[311568739,1705252245006,-905.29,0.00031547,2]
[311568741,1705252245015,-500.0,0.00031547,2]
[311568743,1705252245025,-500.0,0.00031547,2]
[311568745,1705252245034,-600.42425379,0.00031547,2]
[311568747,1705252245043,-500.0,0.00031547,2]
[311568749,1705252245051,-500.0,0.00031547,2]
[311568750,1705252245060,-714.98,0.00031547,2]
[311568753,1705252245070,-614.02729468,0.00031547,2]
[311568755,1705252245080,-500.0,0.00031547,2]
[311568757,1705252245090,-151.0,0.00031547,2]
[311568758,1705252245100,-151.0,0.00031547,2]
[311568760,1705252245110,-2086.67,0.00031609,2]
[311568762,1705252245119,-24429.69,0.00031609,2]
[311568764,1705252245128,-726.34,0.00031609,2]
[311568767,1705252245137,-9497.87,0.00031609,2]
[311568768,1705252245146,-43293.24,0.00031609,2]
[311568770,1705252245155,-500.0,0.00031609,2]
[311568773,1705252245165,-500.0,0.00031609,2]
[311568774,1705252245173,-1065.8,0.00031609,2]
[311568776,1705252245183,-500.0,0.00031821,2]
[311568778,1705252245192,-805.31,0.00031821,2]
[311568780,1705252245201,-523.95040652,0.00031821,2]
[311568789,1705252245274,-500.0,0.00031821,2]
[311568791,1705252245284,-500.0,0.00031821,2]
[311568793,1705252245294,-512.66668564,0.00031821,2]
[311568795,1705252245303,-513.83673442,0.00031821,2]
[311568797,1705252245314,-500.0,0.00031821,2]
[311568799,1705252245323,-684.6,0.00031821,2]
[311568801,1705252245333,-500.0,0.00031821,2]
[311568803,1705252245342,-1940.92,0.00031821,2]
[311568805,1705252245352,-500.0,0.00031821,2]
[311568807,1705252245361,-500.0,0.00031821,2]
[311568809,1705252245370,-500.0,0.00031821,2]
[311568811,1705252245379,-500.0,0.00031821,2]
[311568813,1705252245388,-500.0,0.00031821,2]
[311568815,1705252245397,-500.0,0.00031821,2]
[311568817,1705252245406,-516.72556179,0.00031821,2]
[311568819,1705252245416,-597.93975768,0.00031821,2]
[311568821,1705252245424,-600.54323658,0.00031821,2]
[311568823,1705252245433,-500.0,0.00031821,2]
[311568825,1705252245442,-500.0,0.00031821,2]
[311568827,1705252245452,-2291.76,0.00031821,2]
[311568829,1705252245461,-1984.0,0.00031821,2]
[311568831,1705252245470,-500.0,0.00031821,2]
[311568833,1705252245479,-628.92033821,0.00031821,2]
[311568835,1705252245488,-500.0,0.00031821,2]
[311568837,1705252245497,-500.0,0.00031821,2]
[311568839,1705252245507,-500.0,0.00031821,2]
[311568841,1705252245516,-674.96,0.00031821,2]
[311568843,1705252245525,-500.0,0.00031821,2]
[311568845,1705252245534,-501.01249999,0.00031821,2]
[311568847,1705252245545,-500.0,0.00031821,2]
[311568849,1705252245555,-1323.48,0.00031821,2]
[311568851,1705252245564,-500.0,0.00031821,2]
[311568853,1705252245573,-500.0,0.00031821,2]
[311568855,1705252245582,-500.0,0.00031821,2]
[311568857,1705252245591,-500.0,0.00031821,2]
[311568859,1705252245600,-507.03720621,0.00031821,2]
[311568861,1705252245609,-631.39,0.00031821,2]
[311568863,1705252245618,-500.0,0.00031821,2]
[311568865,1705252245628,-500.0,0.00031821,2]
[311568867,1705252245638,-1010.16,0.00031821,2]
[311568869,1705252245647,-500.0,0.00031821,2]
[311568871,1705252245656,-500.0,0.00031821,2]
[311568873,1705252245666,-1354.27,0.00031821,2]
[311568875,1705252245675,-500.0,0.00031821,2]
[311568877,1705252245684,-500.0,0.00031821,2]
[311568879,1705252245693,-357.61194086,0.00031821,2]
[311568881,1705252245703,-500.0,0.00031821,2]
[311568883,1705252245712,-711.13,0.00031821,2]
[311568885,1705252245720,-500.0,0.00031821,2]
[311568887,1705252245730,-500.0,0.00031821,2]
[311568889,1705252245739,-500.0,0.00031821,2]
[311568891,1705252245748,-500.0,0.00031821,2]
[311568893,1705252245757,-500.0,0.00031821,2]
[311568895,1705252245766,-508.42158599,0.00031821,2]
[311568897,1705252245775,-615.79197859,0.00031821,2]
[311568899,1705252245784,-500.0,0.00031821,2]
[311568901,1705252245793,-500.0,0.00031821,2]
[311568903,1705252245802,-500.0,0.00031821,2]
[311568906,1705252245810,-500.0,0.00031821,2]
[311568908,1705252245819,-500.0,0.00031821,2]
[311568910,1705252245828,-500.0,0.00031821,2]
[311568912,1705252245837,-500.0,0.00031821,2]
[311568914,1705252245846,-500.83076919,0.00031821,2]
[311568916,1705252245856,-905.29,0.00031821,2]
[311568918,1705252245865,-500.0,0.00031821,2]
[311568920,1705252245874,-500.0,0.00031821,2]
[311568922,1705252245882,-500.0,0.00031821,2]
[311568924,1705252245891,-500.0,0.00031821,2]
[311568926,1705252245900,-714.98,0.00031821,2]
[311568928,1705252245909,-500.0,0.00031821,2]
[311568930,1705252245918,-151.0,0.00031821,2]
[311568932,1705252245927,-202.8,0.00031821,2]
[311568934,1705252245937,-2086.67,0.00031883,2]
[311568936,1705252245946,-24429.69,0.00031883,2]
[311568938,1705252245955,-726.34,0.00031883,2]
[311568940,1705252245965,-9497.87,0.00031883,2]
[311568942,1705252245975,-23352.51466576,0.00031883,2]
[311568961,1705252246143,-3757.61844758,0.00031883,2]
[311568978,1705252246294,-500.0,0.00028866,2]
[311568980,1705252246303,-500.0,0.0002914,2]
[311568982,1705252246312,-500.0,0.00029414,2]
[311568983,1705252246321,-421.55727498,0.00029688,2]
[311568985,1705252246331,-16183.10688666,0.00031883,2]
[311568987,1705252246340,-500.0,0.00031883,2]
[311568989,1705252246349,-500.0,0.00031883,2]
[311568999,1705252246428,-1065.8,0.00031883,2]
[311569001,1705252246438,-588.141354,0.000319,2]
[311569003,1705252246447,-1416.0,0.0003197,30]
[311569005,1705252246456,-242.0,0.0003197,30]
[311569007,1705252246465,-151.0,0.00031979,2]
[311569009,1705252246475,-583.96,0.00031979,2]
[311569011,1705252246484,-500.0,0.00031979,2]
[311569013,1705252246493,-500.0,0.00031979,2]
[311569015,1705252246502,-516.89721393,0.00031979,2]
[311569017,1705252246511,-500.52353992,0.00031979,2]
[311569019,1705252246521,-403.59073251,0.00031979,2]
[311569021,1705252246530,-500.0,0.00031979,2]
[311569023,1705252246538,-502.68826991,0.00031979,2]
[311569025,1705252246549,-484.52171501,0.00031979,2]
[311569027,1705252246557,-500.0,0.00031979,2]
[311569029,1705252246566,-500.0,0.00031979,2]
[311569031,1705252246577,-571.68312973,0.00031979,2]
[311569033,1705252246586,-244.07105398,0.00031979,2]
[311569035,1705252246598,-331.78472333,0.00031979,2]
[311569037,1705252246607,-195.5449066,0.00031979,2]
[311569039,1705252246616,-472.51850201,0.00031979,2]
[311569049,1705252246697,-27.48149799,0.00031979,2]
[311569051,1705252246706,-500.0,0.00031979,2]
[311569053,1705252246716,-440.11169999,0.00031979,2]
[311569065,1705252246832,-59.88830001,0.00031979,2]
[311569067,1705252246841,-500.0,0.00031979,2]
[311569069,1705252246850,-165.67169999,0.00031979,2]
[311569072,1705252246862,-334.32830001,0.00031979,2]
[311569074,1705252246871,-185.87169999,0.00031979,2]
[311569076,1705252246883,-314.12830001,0.00031979,2]
[311569078,1705252246893,-500.0,0.00031979,2]
[311569080,1705252246901,-500.0,0.00031979,2]
[311569082,1705252246911,-500.0,0.00031979,2]
[311569084,1705252246920,-500.0,0.00031979,2]
[311569086,1705252246929,-204.80596901,0.00031979,2]
[311569087,1705252246939,-500.45704243,0.00031979,2]
[311569090,1705252246948,-500.0,0.00031979,2]
[311569092,1705252246958,-500.0,0.00031979,2]
[311569094,1705252246967,-168.84344426,0.00031979,2]
[311569121,1705252247218,-500.0,0.00030999,2]
[311569123,1705252247228,-218.35586855,0.00031273,2]
[311569125,1705252247238,-331.15655574,0.00031979,2]
[311569127,1705252247247,-606.29865688,0.00031979,2]
[311569129,1705252247256,-423.2463191,0.00031979,2]
[311569131,1705252247266,-500.0,0.00031979,2]
[311569133,1705252247274,-500.0,0.00031979,2]
[311569135,1705252247284,-505.25677157,0.00031979,2]
[311569137,1705252247293,-575.04232195,0.00031979,2]
[311569139,1705252247301,-1001.27690387,0.00031979,5]
[311569141,1705252247310,-500.0,0.00031979,2]
[311569143,1705252247319,-578.39172512,0.00031979,2]
[311569145,1705252247328,-500.0,0.00031979,2]
[311569147,1705252247337,-500.0,0.00031979,2]
[311569149,1705252247346,-364.37476297,0.00031979,2]
[311569151,1705252247355,-500.0,0.00031979,2]
[311569153,1705252247364,-500.0,0.00031979,2]
[311569155,1705252247373,-500.0,0.00031979,2]
[311569157,1705252247382,-500.0,0.00031979,2]
[311569159,1705252247391,-500.0,0.00031979,2]
[311569161,1705252247400,-500.0,0.00031979,2]
[311569163,1705252247409,-500.0,0.00031979,2]
[311569165,1705252247418,-10313.51,0.00031979,2]
[311569167,1705252247427,-500.0,0.00031979,2]
[311569169,1705252247436,-500.0,0.00031979,2]
[311569171,1705252247445,-500.0,0.00031979,2]
[311569173,1705252247454,-500.0,0.00031979,2]
[311569175,1705252247463,-509.59098632,0.00031979,2]
[311569177,1705252247472,-1779.04,0.00031979,2]
[311569179,1705252247481,-530.40697036,0.00031979,2]
[311569181,1705252247491,-500.0,0.00031979,2]
[311569183,1705252247500,-500.0,0.00031979,2]
[311569185,1705252247509,-500.60369324,0.00031979,2]
[311569186,1705252247518,-1304.94,0.00031979,2]
[311569188,1705252247528,-563.49,0.00031979,2]
[311569190,1705252247539,-749.95,0.00031979,2]
[311569193,1705252247548,-500.0,0.00031979,2]
[311569195,1705252247558,-500.0,0.00031979,2]
[311569197,1705252247567,-2216.71,0.00031979,2]
[311569198,1705252247576,-500.0,0.00031979,2]
[311569201,1705252247585,-500.0,0.00031979,2]
[311569203,1705252247594,-500.0,0.00031979,2]
[311569205,1705252247604,-500.0,0.00031979,2]
[311569207,1705252247613,-500.0,0.00031979,2]
[311569209,1705252247622,-4632.82,0.00031979,2]
[311569211,1705252247631,-500.0,0.00031979,2]
[311569213,1705252247640,-730.7,0.00031979,2]
[311569221,1705252247707,-500.0,0.00031979,2]
[311569223,1705252247717,-500.0,0.00031979,2]
[311569225,1705252247728,-500.0,0.00031979,2]
[311569227,1705252247737,-500.0,0.00031979,2]
[311569229,1705252247747,-500.0,0.00031979,2]
[311569231,1705252247755,-500.0,0.00031979,2]
[311569233,1705252247765,-244.03180367,0.00031979,2]
[311569235,1705252247774,-182.58233251,0.00031979,2]
[311569237,1705252247784,-721.24,0.00031979,2]
[311569239,1705252247793,-500.0,0.00031979,2]
[311569241,1705252247801,-1054.96,0.00031979,2]
[311569243,1705252247810,-500.0,0.00031979,2]
[311569245,1705252247819,-500.0,0.00031979,2]
[311569247,1705252247828,-500.0,0.00031979,2]
[311569249,1705252247837,-500.0,0.00031979,2]
[311569251,1705252247846,-500.0,0.00031979,2]
[311569253,1705252247855,-500.0,0.00031979,2]
[311569255,1705252247864,-500.0,0.00031979,2]
[311569257,1705252247873,-500.0,0.00031979,2]
[311569259,1705252247882,-500.0,0.00031979,2]
[311569261,1705252247892,-500.0,0.00031979,2]
[311569263,1705252247901,-500.0,0.00031979,2]
[311569265,1705252247910,-2960.76,0.00031979,2]
[311569267,1705252247919,-500.0,0.00031979,2]
[311569269,1705252247928,-504.79515553,0.00031979,2]
[311569271,1705252247938,-500.0,0.00031979,2]
[311569273,1705252247946,-500.0,0.00031979,2]
[311569275,1705252247955,-500.0,0.00031979,2]
[311569277,1705252247965,-501.77608104,0.00031979,2]
[311569279,1705252247974,-666.67,0.00031979,2]
[311569281,1705252247985,-500.0,0.00031979,2]
[311569283,1705252247997,-500.0,0.00031979,2]
[311569285,1705252248005,-500.0,0.00031979,2]
[311569287,1705252248014,-500.0,0.00031979,2]
[311569289,1705252248023,-1416.0,0.0003198,30]
[311569291,1705252248032,-242.0,0.0003198,30]
[311569293,1705252248041,-1416.0,0.0003199,30]
[311569296,1705252248051,-242.0,0.0003199,30]
[311569298,1705252248060,-5980.05981564,0.00031992,2]
[311569299,1705252248069,-687.86118875,0.00031998,4]
[311569301,1705252248078,-298.57878856,0.00031998,4]
[311569304,1705252248087,-160.0,0.00031999,10]
[311569305,1705252248096,-155.07753877,0.00031999,2]
[311569307,1705252248105,-4712.57883465,0.00031999,3]
[311569310,1705252248114,-500.0,0.00031999,2]
[311569311,1705252248124,-500.0,0.00031999,2]
[311569313,1705252248133,-468.88410759,0.00031999,2]
[311569316,1705252248143,-1868.01,0.00031999,2]
[311569318,1705252248152,-11219.2,0.00031999,2]
[311569320,1705252248161,-14552.15,0.00031999,2]
[311569322,1705252248171,-500.0,0.00031999,2]
[311569324,1705252248181,-691.14,0.00031999,2]
[311569326,1705252248190,-6137.48,0.00031999,2]
[311569328,1705252248199,-500.0,0.00031999,2]
[311569330,1705252248208,-500.0,0.00031999,2]
[311569332,1705252248218,-500.0,0.00031999,2]
[311569334,1705252248227,-500.0,0.00031999,2]
[311569335,1705252248236,-131867.32664808,0.00032,15]
[311569338,1705252248249,-2873.64119537,0.00032,15]
[311575806,1705252316449,12998.87396649,0.00024,5]
[311577179,1705253432345,-154.9690062,0.00021076,2]
[311577180,1705253432355,-154.9690062,0.00021077,2]
[311577182,1705253432367,-154.9690062,0.00021078,4]
[311577183,1705253432376,-1985.5364354,0.0002108,2]
[311577184,1705253432386,-1157.74872545,0.00021081,2]
[311577185,1705253432397,-3304.12172961,0.00021081,2]
[311577186,1705253432406,-566.995271,0.00021093,2]
[311577187,1705253432416,-397.0929811,0.00021318,2]
[311577188,1705253432425,-5169.79023899,0.00021598,2]
[311577189,1705253432435,-1528.0428752,0.00021627,2]
[311577190,1705253432445,-9313.8740275,0.00021634,2]
[311577191,1705253432454,-167.269158,0.00021918,2]
[311577192,1705253432464,-425.2676334,0.00022,2]
[311577193,1705253432473,-156.97486621,0.00022,2]
[311577194,1705253432482,-595.57121899,0.0002328,2]
[311577195,1705253432494,-344.92246123,0.0002328,2]
[311577240,1705253438533,-250.12133287,0.00021075,2]
[311577241,1705253438543,-4607.69266103,0.0002328,2]
[311577242,1705253438554,-1140.06440702,0.0002328,2]
[311577243,1705253438565,-2060.84094292,0.0002328,2]
[311577245,1705253438574,-154.9690062,0.000235,2]
[311577247,1705253438584,-200.0,0.00023757,7]
[311577248,1705253438593,-196.17678123,0.00023998,2]
[311577249,1705253438602,-3931.78921365,0.00023998,2]
[311577254,1705253438651,-11796.67558058,0.00023998,2]
[311577256,1705253438661,-191.32362191,0.00023998,2]
[311577258,1705253438670,-268.53777047,0.00023998,2]
[311577259,1705253438679,-2584.49698515,0.00023998,2]
[311577263,1705253438689,-162.81745454,0.00023998,2]
[311577264,1705253438795,-2521.80207579,0.00023998,2]
[311577265,1705253438804,-1050.84836442,0.00023998,2]
[311577266,1705253438814,-262.4633005,0.00023998,2]
[311577267,1705253438823,-1955.20901272,0.00023998,5]
[311577268,1705253438832,-307.21146084,0.00023998,2]
[311577269,1705253438841,-161.13707041,0.00023998,2]
[311577270,1705253438850,-467.58133257,0.00023998,2]
[311577271,1705253438859,-302.0,0.00023998,2]
[311577272,1705253438869,-887.33281873,0.00023998,7]
[311577273,1705253438879,-1291.3942081,0.00023998,2]
[311577274,1705253438889,-155.69292077,0.00023998,2]
[311577275,1705253438898,-469.94797818,0.00023998,2]
[311577276,1705253438909,-294.72688296,0.00023998,2]
[311577277,1705253438918,-229.90854817,0.00023998,2]
[311577278,1705253438927,-23816.9487729,0.00023999,2]
[311577279,1705253438936,-2215.30376627,0.00024,5]
[311577280,1705253438945,-619.81969321,0.00024,2]
[311577281,1705253438954,-2081.1114357,0.00024,2]
[311577282,1705253438963,-200.0,0.00024,2]
[311577283,1705253438973,-225020.62230933,0.00024,2]
[311577284,1705253438983,-564.26014884,0.00024382,2]
[311577285,1705253438992,-167.269158,0.00024482,2]
[311577286,1705253439001,-683.51633982,0.00024814,2]
[311577287,1705253439010,-564.26014881,0.00025111,2]
[311577288,1705253439020,-564.26014881,0.0002584,2]
[311577289,1705253439029,-280.0,0.00026133,15]
[311577290,1705253439038,-564.26014881,0.00026568,2]
[311577291,1705253439047,-228.81921753,0.00027,2]
[311577292,1705253439057,-3316.01553422,0.00027,2]
[311577293,1705253439066,-460.9594683,0.00027,2]
[311577294,1705253439076,-564.26014881,0.00027297,2]
[311577295,1705253439085,-500.0,0.00027396,2]
[311577296,1705253439094,-500.0,0.00027396,2]
[311577297,1705253439104,-500.0,0.00027396,2]
[311577298,1705253439113,-591.5975755,0.00027396,2]
[311577299,1705253439122,-500.0,0.00027396,2]
[311577300,1705253439131,-500.0,0.00027396,2]
[311577301,1705253439141,-435.14086557,0.00027396,2]
[311577302,1705253439150,-419.91263507,0.00027396,2]
[311577303,1705253439159,-503.60238433,0.00027396,2]
[311577304,1705253439169,-333.47188667,0.00027396,2]
[311577305,1705253439178,-500.0,0.00027396,2]
[311577306,1705253439188,-229.8080532,0.00027396,2]
[311577307,1705253439197,-500.0,0.00027396,2]
[311577308,1705253439206,-500.0,0.00027396,2]
[311577309,1705253439215,-500.0,0.00027396,2]
[311577310,1705253439224,-258.4923057,0.00027396,2]
[311577311,1705253439234,-500.0,0.00027396,2]
[311577312,1705253439243,-500.0,0.00027396,2]
[311577313,1705253439253,-500.0,0.00027396,2]
[311577314,1705253439262,-500.0,0.00027396,2]
[311577315,1705253439271,-298.56853872,0.00027396,2]
[311577316,1705253439280,-483.60269549,0.00027396,2]
[311577317,1705253439289,-500.0,0.00027396,2]
[311577318,1705253439299,-500.0,0.00027396,2]
[311577319,1705253439307,-500.0,0.00027397,2]
[311577320,1705253439317,-355.40945307,0.00027397,2]
[311577321,1705253439326,-500.0,0.00027397,2]
[311577322,1705253439335,-465.19455805,0.00027397,2]
[311577323,1705253439344,-494.18805421,0.00027397,2]
[311577324,1705253439354,-580.47,0.00027397,2]
[311577325,1705253439367,-500.0,0.00027397,2]
[311577326,1705253439376,-500.0,0.00027397,2]
[311577327,1705253439385,-507.33239193,0.00027397,2]
[311577328,1705253439395,-500.0,0.00027397,2]
[311577329,1705253439404,-500.0,0.00027397,2]
[311577330,1705253439414,-500.0,0.00027397,2]
[311577331,1705253439423,-506.31192834,0.00027397,2]
[311577332,1705253439432,-500.0,0.00027397,2]
[311577333,1705253439443,-500.0,0.00027397,2]
[311577334,1705253439452,-500.0,0.00027397,2]
[311577335,1705253439461,-500.0,0.00027397,2]
[311577336,1705253439470,-500.0,0.00027397,2]
[311577337,1705253439480,-500.0,0.00027397,2]
[311577338,1705253439488,-510.88502478,0.00027397,2]
[311577339,1705253439498,-500.0,0.00027397,2]
[311577340,1705253439507,-500.0,0.00027397,2]
[311577341,1705253439516,-500.0,0.00027397,2]
[311577342,1705253439525,-500.0,0.00027397,2]
[311577343,1705253439534,-500.0,0.00027397,2]
[311577344,1705253439543,-500.0,0.00027397,2]
[311577345,1705253439553,-552.47,0.00027397,2]
[311577346,1705253439562,-500.45685552,0.00027397,2]
[311577347,1705253439571,-500.0,0.00027397,2]
[311577348,1705253439581,-3531.37,0.00027397,2]
[311577349,1705253439590,-300.0,0.00027397,2]
[311577350,1705253439600,-500.0,0.00027397,2]
[311577351,1705253439610,-502.33023252,0.00027397,2]
[311577352,1705253439619,-500.19236557,0.00027397,2]
[311577353,1705253439628,-500.0,0.00027397,2]
[311577354,1705253439637,-500.0,0.00027397,2]
[311577355,1705253439647,-500.0,0.00027397,2]
[311577356,1705253439657,-500.0,0.00027397,2]
[311577357,1705253439666,-156.69701494,0.00027397,2]
[311577358,1705253439676,-214.61638394,0.00027397,2]
[311577359,1705253439685,-1271.4,0.00027397,2]
[311577360,1705253439695,-500.0,0.00027397,2]
[311577361,1705253439704,-500.0,0.00027397,2]
[311577362,1705253439713,-500.0,0.00027397,2]
[311577363,1705253439723,-500.0,0.00027397,2]
[311577364,1705253439732,-500.0,0.00027397,2]
[311577365,1705253439741,-570.14526837,0.00027397,2]
[311577366,1705253439752,-500.0,0.00027397,2]
[311577367,1705253439761,-500.0,0.00027397,2]
[311577368,1705253439771,-500.0,0.00027397,2]
[311577369,1705253439780,-500.0,0.00027397,2]
[311577370,1705253439789,-500.0,0.00027397,2]
[311577371,1705253439798,-500.0,0.00027397,2]